[Event "Titled Tuesday Blitz August 1 Early 2023"]
[White "Buscar, Michael"]
[Black "Fiorito, Francisco"]
[WhiteFideId "2603616"]
[BlackFideId "180165"]
[WhiteElo "2385"]
[BlackElo "2531"]
[Result "0-1"]
[Round "5"]
[TimeControl "180+1"]
[Date "2023.08.01"]
[WhiteClock "0:00:42"]
[BlackClock "0:01:13"]
[Board "140"]

1. d4 {[%clk 0:03:00]}  Nf6 {[%clk 0:02:51]} 2. c4 {[%clk 0:02:59]}  c5 {[%clk 0:02:48]} 3. d5 {[%clk 0:02:58]}  b5 {[%clk 0:02:46]} 4. cxb5 {[%clk 0:02:59]}  a6 {[%clk 0:02:46]} 5. bxa6 {[%clk 0:02:59]}  Bxa6 {[%clk 0:02:46]} 6. g3 {[%clk 0:02:59]}  g6 {[%clk 0:02:45]} 7. Bg2 {[%clk 0:02:56]}  d6 {[%clk 0:02:46]} 8. Nf3 {[%clk 0:02:51]}  Bg7 {[%clk 0:02:45]} 9. O-O {[%clk 0:02:50]}  O-O {[%clk 0:02:46]} 10. Nc3 {[%clk 0:02:39]}  Nbd7 {[%clk 0:02:44]} 11. Nd2 {[%clk 0:02:37]}  Qb6 {[%clk 0:02:37]} 12. Rb1 {[%clk 0:02:29]}  Rfb8 {[%clk 0:02:36]} 13. f4 {[%clk 0:02:17]}  c4+ {[%clk 0:02:35]} 14. Kh1 {[%clk 0:02:15]}  Ng4 {[%clk 0:02:33]} 15. Nde4 {[%clk 0:02:06]}  f5 {[%clk 0:02:08]} 16. Bh3 {[%clk 0:02:05]}  h5 {[%clk 0:01:36]} 17. Bxg4 {[%clk 0:02:00]}  hxg4 {[%clk 0:01:37]} 18. Nd2 {[%clk 0:01:53]}  Nf6 {[%clk 0:01:26]} 19. Qc2 {[%clk 0:01:52]}  Qc5 {[%clk 0:01:22]} 20. e4 {[%clk 0:01:48]}  fxe4 {[%clk 0:01:17]} 21. Ndxe4 {[%clk 0:01:46]}  Nxe4 {[%clk 0:01:16]} 22. Qxe4 {[%clk 0:01:45]}  Bxc3 {[%clk 0:01:16]} 23. bxc3 {[%clk 0:01:42]}  Rxb1 {[%clk 0:01:14]} 24. Qxg6+ {[%clk 0:01:37]}  Kf8 {[%clk 0:01:14]} 25. Qxb1 {[%clk 0:01:17]}  Qxd5+ {[%clk 0:01:14]} 26. Kg1 {[%clk 0:01:18]}  Bb7 {[%clk 0:01:14]} 27. Kf2 {[%clk 0:00:58]}  Rxa2+ {[%clk 0:01:14]} 28. Ke1 {[%clk 0:00:42]}  Qe6+ {[%clk 0:01:13]} 0-1


[Site "https://www.chess.com"]

[Event "Titled Tuesday Blitz August 1 Early 2023"]
[White "Mekhane, Adam"]
[Black "Han, Yichen"]
[WhiteFideId "36050601"]
[BlackFideId "1054430"]
[WhiteElo "2531"]
[BlackElo "2384"]
[Result "0-1"]
[Round "5"]
[TimeControl "180+1"]
[Date "2023.08.01"]
[WhiteClock "0:00:06"]
[BlackClock "0:01:29"]
[Board "141"]

1. e4 {[%clk 0:03:00]}  e5 {[%clk 0:02:47]} 2. Nc3 {[%clk 0:02:59]}  Nc6 {[%clk 0:02:47]} 3. g3 {[%clk 0:02:58]}  h5 {[%clk 0:02:45]} 4. Nf3 {[%clk 0:02:56]}  d6 {[%clk 0:02:41]} 5. Bg2 {[%clk 0:02:54]}  Be6 {[%clk 0:02:40]} 6. O-O {[%clk 0:02:54]}  h4 {[%clk 0:02:39]} 7. Nxh4 {[%clk 0:02:53]}  Qd7 {[%clk 0:02:36]} 8. b4 {[%clk 0:02:15]}  Bh3 {[%clk 0:02:30]} 9. Bxh3 {[%clk 0:01:58]}  Qxh3 {[%clk 0:02:28]} 10. Qf3 {[%clk 0:01:57]}  Rxh4 {[%clk 0:02:12]} 11. Qg2 {[%clk 0:01:53]}  Qxg2+ {[%clk 0:02:08]} 12. Kxg2 {[%clk 0:01:54]}  Rh8 {[%clk 0:02:09]} 13. Nd5 {[%clk 0:01:55]}  O-O-O {[%clk 0:02:08]} 14. c3 {[%clk 0:01:53]}  Nge7 {[%clk 0:02:06]} 15. Ne3 {[%clk 0:01:52]}  g6 {[%clk 0:02:04]} 16. a4 {[%clk 0:01:52]}  d5 {[%clk 0:02:01]} 17. exd5 {[%clk 0:01:39]}  Nxd5 {[%clk 0:02:02]} 18. Nc4 {[%clk 0:01:40]}  Bg7 {[%clk 0:01:59]} 19. Re1 {[%clk 0:01:36]}  Nb6 {[%clk 0:01:57]} 20. Ne3 {[%clk 0:01:32]}  e4 {[%clk 0:01:52]} 21. a5 {[%clk 0:01:29]}  Nd5 {[%clk 0:01:52]} 22. Nxd5 {[%clk 0:01:29]}  Rxd5 {[%clk 0:01:52]} 23. Rxe4 {[%clk 0:01:29]}  Re5 {[%clk 0:01:46]} 24. Rxe5 {[%clk 0:01:24]}  Nxe5 {[%clk 0:01:47]} 25. d4 {[%clk 0:01:23]}  Nc4 {[%clk 0:01:47]} 26. Bf4 {[%clk 0:01:21]}  Re8 {[%clk 0:01:46]} 27. Kf3 {[%clk 0:01:21]}  Bf8 {[%clk 0:01:45]} 28. Rh1 {[%clk 0:01:12]}  Bd6 {[%clk 0:01:45]} 29. Bc1 {[%clk 0:01:12]}  b6 {[%clk 0:01:41]} 30. axb6 {[%clk 0:01:04]}  cxb6 {[%clk 0:01:42]} 31. h4 {[%clk 0:01:00]}  a5 {[%clk 0:01:41]} 32. bxa5 {[%clk 0:00:55]}  bxa5 {[%clk 0:01:42]} 33. h5 {[%clk 0:00:37]}  gxh5 {[%clk 0:01:40]} 34. Rxh5 {[%clk 0:00:35]}  a4 {[%clk 0:01:39]} 35. Rb5 {[%clk 0:00:11]}  a3 {[%clk 0:01:39]} 36. Rb1 {[%clk 0:00:11]}  Re1 {[%clk 0:01:38]} 37. Ra1 {[%clk 0:00:10]}  a2 {[%clk 0:01:30]} 38. Rxa2 {[%clk 0:00:09]}  Rxc1 {[%clk 0:01:30]} 39. Ra8+ {[%clk 0:00:09]}  Kd7 {[%clk 0:01:30]} 40. Ra7+ {[%clk 0:00:09]}  Ke6 {[%clk 0:01:30]} 41. d5+ {[%clk 0:00:10]}  Kxd5 {[%clk 0:01:29]} 42. Rxf7 {[%clk 0:00:10]}  Ne5+ {[%clk 0:01:29]} 43. Kg2 {[%clk 0:00:06]}  Nxf7 {[%clk 0:01:29]} 0-1


[Site "https://www.chess.com"]

[Event "Titled Tuesday Blitz August 1 Early 2023"]
[White "Heinemann, Josefine"]
[Black "Gu, Xiaobing"]
[WhiteFideId "12900460"]
[BlackFideId "8602611"]
[WhiteElo "2529"]
[BlackElo "2384"]
[Result "1-0"]
[Round "5"]
[TimeControl "180+1"]
[Date "2023.08.01"]
[WhiteClock "0:00:08"]
[BlackClock "0:00:00"]
[Board "142"]

1. e4 {[%clk 0:02:59]}  c5 {[%clk 0:02:56]} 2. c3 {[%clk 0:02:55]}  Nf6 {[%clk 0:02:54]} 3. e5 {[%clk 0:02:54]}  Nd5 {[%clk 0:02:54]} 4. Nf3 {[%clk 0:02:54]}  Nc6 {[%clk 0:02:53]} 5. Bc4 {[%clk 0:02:54]}  Nb6 {[%clk 0:02:52]} 6. Bb3 {[%clk 0:02:54]}  c4 {[%clk 0:02:50]} 7. Bc2 {[%clk 0:02:54]}  d6 {[%clk 0:02:51]} 8. exd6 {[%clk 0:02:54]}  Qxd6 {[%clk 0:02:51]} 9. O-O {[%clk 0:02:54]}  Bg4 {[%clk 0:02:49]} 10. Re1 {[%clk 0:02:55]}  O-O-O {[%clk 0:02:40]} 11. Qe2 {[%clk 0:02:48]}  e5 {[%clk 0:02:33]} 12. Na3 {[%clk 0:02:41]}  Kb8 {[%clk 0:02:08]} 13. Nxc4 {[%clk 0:02:25]}  Nxc4 {[%clk 0:02:04]} 14. Qxc4 {[%clk 0:02:25]}  Bxf3 {[%clk 0:02:01]} 15. gxf3 {[%clk 0:02:25]}  h5 {[%clk 0:01:54]} 16. Be4 {[%clk 0:02:10]}  h4 {[%clk 0:01:33]} 17. d3 {[%clk 0:02:09]}  h3 {[%clk 0:01:28]} 18. Qxf7 {[%clk 0:01:56]}  Be7 {[%clk 0:01:13]} 19. Be3 {[%clk 0:01:45]}  Rdf8 {[%clk 0:01:12]} 20. Qd5 {[%clk 0:01:40]}  Qf6 {[%clk 0:01:11]} 21. Qb5 {[%clk 0:01:25]}  a6 {[%clk 0:00:57]} 22. Qb6 {[%clk 0:01:20]}  Bd8 {[%clk 0:00:44]} 23. Qb3 {[%clk 0:01:19]}  Na5 {[%clk 0:00:41]} 24. Qa4 {[%clk 0:01:05]}  Rh4 {[%clk 0:00:37]} 25. Kf1 {[%clk 0:00:50]}  g5 {[%clk 0:00:35]} 26. b4 {[%clk 0:00:42]}  g4 {[%clk 0:00:27]} 27. bxa5 {[%clk 0:00:34]}  gxf3 {[%clk 0:00:26]} 28. Qb4 {[%clk 0:00:32]}  Qg7 {[%clk 0:00:17]} 29. Reb1 {[%clk 0:00:24]}  Rf7 {[%clk 0:00:14]} 30. Ke1 {[%clk 0:00:13]}  Rg4 {[%clk 0:00:13]} 31. Kd2 {[%clk 0:00:13]}  Rg2 {[%clk 0:00:13]} 32. Qd6+ {[%clk 0:00:12]}  Bc7 {[%clk 0:00:12]} 33. Qc5 {[%clk 0:00:12]}  Rd7 {[%clk 0:00:12]} 34. Qa7+ {[%clk 0:00:12]}  Kc8 {[%clk 0:00:12]} 35. Qxb7+ {[%clk 0:00:12]}  Kd8 {[%clk 0:00:12]} 36. Qa8+ {[%clk 0:00:12]}  Ke7 {[%clk 0:00:13]} 37. Bc5+ {[%clk 0:00:12]}  Kf7 {[%clk 0:00:11]} 38. Qc6 {[%clk 0:00:12]}  Kg8 {[%clk 0:00:10]} 39. Qe6+ {[%clk 0:00:12]}  Kh8 {[%clk 0:00:09]} 40. Qxh3+ {[%clk 0:00:12]}  Kg8 {[%clk 0:00:08]} 41. Qxf3 {[%clk 0:00:12]}  Qg5+ {[%clk 0:00:07]} 42. Kc2 {[%clk 0:00:11]}  Rg4 {[%clk 0:00:05]} 43. Bd5+ {[%clk 0:00:10]}  Kg7 {[%clk 0:00:04]} 44. Qf8+ {[%clk 0:00:10]}  Kg6 {[%clk 0:00:03]} 45. Qg8+ {[%clk 0:00:10]}  Rg7 {[%clk 0:00:03]} 46. Qe8+ {[%clk 0:00:10]}  Kh6 {[%clk 0:00:03]} 47. Be3 {[%clk 0:00:10]}  Rf4 {[%clk 0:00:03]} 48. Bxf4 {[%clk 0:00:09]}  Qxf4 {[%clk 0:00:04]} 49. Kb3 {[%clk 0:00:08]}  Bd6 {[%clk 0:00:02]} 50. Qe6+ {[%clk 0:00:08]}  Rg6 {[%clk 0:00:01]} 51. Qh3+ {[%clk 0:00:08]}  Kg7 {[%clk 0:00:00]} 52. Rg1 {[%clk 0:00:08]} 1-0


[Site "https://www.chess.com"]

[Event "Titled Tuesday Blitz August 1 Early 2023"]
[White "Topalov, Aleksandar"]
[Black "Rodchenkov, Sergey D."]
[WhiteFideId "925659"]
[BlackFideId "4168712"]
[WhiteElo "2360"]
[BlackElo "2519"]
[Result "1-0"]
[Round "5"]
[TimeControl "180+1"]
[Date "2023.08.01"]
[WhiteClock "0:00:10"]
[BlackClock "0:00:00"]
[Board "146"]

1. b3 {[%clk 0:03:00]}  d5 {[%clk 0:02:59]} 2. Bb2 {[%clk 0:03:00]}  Nf6 {[%clk 0:03:00]} 3. Nf3 {[%clk 0:03:00]}  c6 {[%clk 0:03:00]} 4. g3 {[%clk 0:03:00]}  Bg4 {[%clk 0:03:00]} 5. Bg2 {[%clk 0:03:00]}  e6 {[%clk 0:03:00]} 6. O-O {[%clk 0:03:00]}  Be7 {[%clk 0:03:00]} 7. d3 {[%clk 0:03:00]}  Nbd7 {[%clk 0:03:00]} 8. Nbd2 {[%clk 0:02:59]}  O-O {[%clk 0:03:00]} 9. c4 {[%clk 0:02:54]}  a5 {[%clk 0:02:58]} 10. a3 {[%clk 0:02:53]}  Bh5 {[%clk 0:02:58]} 11. Ra2 {[%clk 0:02:51]}  Bg6 {[%clk 0:02:56]} 12. Qa1 {[%clk 0:02:50]}  Qb6 {[%clk 0:02:52]} 13. Ne5 {[%clk 0:02:43]}  Nxe5 {[%clk 0:02:48]} 14. Bxe5 {[%clk 0:02:43]}  Rfe8 {[%clk 0:02:40]} 15. Rc1 {[%clk 0:02:41]}  Red8 {[%clk 0:02:36]} 16. Rac2 {[%clk 0:02:32]}  Ng4 {[%clk 0:02:17]} 17. Bd4 {[%clk 0:02:26]}  Bc5 {[%clk 0:02:08]} 18. Bxc5 {[%clk 0:02:16]}  Qxc5 {[%clk 0:02:09]} 19. Rf1 {[%clk 0:01:59]}  Qe7 {[%clk 0:02:08]} 20. h3 {[%clk 0:01:56]}  Nf6 {[%clk 0:02:08]} 21. Qb2 {[%clk 0:01:51]}  Nd7 {[%clk 0:02:08]} 22. b4 {[%clk 0:01:48]}  axb4 {[%clk 0:02:06]} 23. axb4 {[%clk 0:01:48]}  Ra4 {[%clk 0:02:06]} 24. Rb1 {[%clk 0:01:47]}  Rda8 {[%clk 0:01:59]} 25. b5 {[%clk 0:01:45]}  c5 {[%clk 0:01:55]} 26. Nf3 {[%clk 0:01:32]}  Qf6 {[%clk 0:01:37]} 27. Qxf6 {[%clk 0:01:29]}  gxf6 {[%clk 0:01:38]} 28. cxd5 {[%clk 0:01:24]}  exd5 {[%clk 0:01:37]} 29. Nh4 {[%clk 0:01:24]}  Rd4 {[%clk 0:01:32]} 30. Nf3 {[%clk 0:01:11]}  Rda4 {[%clk 0:01:27]} 31. Nh4 {[%clk 0:01:11]}  Ra2 {[%clk 0:01:17]} 32. Rxa2 {[%clk 0:01:08]}  Rxa2 {[%clk 0:01:18]} 33. Bxd5 {[%clk 0:01:02]}  Rxe2 {[%clk 0:01:17]} 34. Nxg6 {[%clk 0:01:02]}  hxg6 {[%clk 0:01:18]} 35. Bxb7 {[%clk 0:01:03]}  Rd2 {[%clk 0:01:17]} 36. Bc6 {[%clk 0:00:59]}  Nb6 {[%clk 0:01:15]} 37. Rc1 {[%clk 0:00:59]}  Rxd3 {[%clk 0:01:13]} 38. Rxc5 {[%clk 0:00:59]}  Kf8 {[%clk 0:01:14]} 39. Be4 {[%clk 0:00:50]}  Rd4 {[%clk 0:01:13]} 40. Bf3 {[%clk 0:00:50]}  Rd3 {[%clk 0:01:12]} 41. Be2 {[%clk 0:00:49]}  Rd2 {[%clk 0:01:12]} 42. Kf1 {[%clk 0:00:50]}  Rb2 {[%clk 0:01:10]} 43. Rc6 {[%clk 0:00:49]}  Nd5 {[%clk 0:01:09]} 44. Rc5 {[%clk 0:00:44]}  Nb6 {[%clk 0:01:03]} 45. h4 {[%clk 0:00:44]}  Ke7 {[%clk 0:01:03]} 46. Rc7+ {[%clk 0:00:44]}  Kf8 {[%clk 0:01:01]} 47. Rb7 {[%clk 0:00:41]}  Nd5 {[%clk 0:01:00]} 48. Bc4 {[%clk 0:00:40]}  Nc3 {[%clk 0:00:54]} 49. Rxf7+ {[%clk 0:00:38]}  Ke8 {[%clk 0:00:53]} 50. Rxf6 {[%clk 0:00:38]}  Rb4 {[%clk 0:00:52]} 51. Rc6 {[%clk 0:00:34]}  Kd7 {[%clk 0:00:47]} 52. g4 {[%clk 0:00:31]}  Ne4 {[%clk 0:00:42]} 53. Bd3 {[%clk 0:00:24]}  Nd6 {[%clk 0:00:37]} 54. h5 {[%clk 0:00:22]}  gxh5 {[%clk 0:00:31]} 55. gxh5 {[%clk 0:00:22]}  Rd4 {[%clk 0:00:31]} 56. Be2 {[%clk 0:00:21]}  Rh4 {[%clk 0:00:24]} 57. Rc5 {[%clk 0:00:20]}  Ne4 {[%clk 0:00:23]} 58. Rd5+ {[%clk 0:00:18]}  Kc7 {[%clk 0:00:24]} 59. Re5 {[%clk 0:00:18]}  Kb6 {[%clk 0:00:22]} 60. Kg2 {[%clk 0:00:16]}  Rf4 {[%clk 0:00:20]} 61. Re6+ {[%clk 0:00:16]}  Kc7 {[%clk 0:00:19]} 62. h6 {[%clk 0:00:16]}  Rxf2+ {[%clk 0:00:16]} 63. Kg1 {[%clk 0:00:14]}  Rf4 {[%clk 0:00:08]} 64. h7 {[%clk 0:00:13]}  Rh4 {[%clk 0:00:09]} 65. Rxe4 {[%clk 0:00:12]}  Rxh7 {[%clk 0:00:08]} 66. Kf2 {[%clk 0:00:12]}  Kb6 {[%clk 0:00:08]} 67. Ke3 {[%clk 0:00:12]}  Rf7 {[%clk 0:00:09]} 68. Re6+ {[%clk 0:00:12]}  Ka7 {[%clk 0:00:09]} 69. Kd4 {[%clk 0:00:11]}  Rd7+ {[%clk 0:00:08]} 70. Kc5 {[%clk 0:00:10]}  Rd2 {[%clk 0:00:08]} 71. Bc4 {[%clk 0:00:10]}  Rh2 {[%clk 0:00:08]} 72. Re7+ {[%clk 0:00:10]}  Kb8 {[%clk 0:00:07]} 73. Bd5 {[%clk 0:00:10]}  Rc2+ {[%clk 0:00:07]} 74. Kb6 {[%clk 0:00:10]}  Rc8 {[%clk 0:00:04]} 75. Bc6 {[%clk 0:00:10]}  Rd8 {[%clk 0:00:03]} 76. Rb7+ {[%clk 0:00:10]}  Kc8 {[%clk 0:00:00]} 77. Ra7 {[%clk 0:00:10]} 1-0


[Site "https://www.chess.com"]

[Event "Titled Tuesday Blitz August 1 Early 2023"]
[White "Atanasov, Radislav"]
[Black "Estrada Nieto, Julian"]
[WhiteFideId "2901471"]
[BlackFideId "5101018"]
[WhiteElo "2256"]
[BlackElo "2512"]
[Result "1/2-1/2"]
[Round "5"]
[TimeControl "180+1"]
[Date "2023.08.01"]
[WhiteClock "0:00:05"]
[BlackClock "0:00:05"]
[Board "151"]

1. e4 {[%clk 0:03:00]}  e5 {[%clk 0:02:59]} 2. Nf3 {[%clk 0:02:59]}  Nc6 {[%clk 0:03:00]} 3. Bb5 {[%clk 0:02:57]}  a6 {[%clk 0:03:00]} 4. Ba4 {[%clk 0:02:57]}  Nf6 {[%clk 0:03:00]} 5. O-O {[%clk 0:02:56]}  Be7 {[%clk 0:03:01]} 6. Re1 {[%clk 0:02:54]}  b5 {[%clk 0:03:01]} 7. Bb3 {[%clk 0:02:53]}  d6 {[%clk 0:03:02]} 8. c3 {[%clk 0:02:49]}  O-O {[%clk 0:03:02]} 9. h3 {[%clk 0:02:48]}  Bb7 {[%clk 0:03:00]} 10. d4 {[%clk 0:02:45]}  Re8 {[%clk 0:02:59]} 11. Nbd2 {[%clk 0:02:40]}  Bf8 {[%clk 0:02:59]} 12. Bc2 {[%clk 0:02:21]}  h6 {[%clk 0:02:57]} 13. a4 {[%clk 0:01:57]}  exd4 {[%clk 0:02:57]} 14. cxd4 {[%clk 0:01:54]}  Nb4 {[%clk 0:02:57]} 15. Bb1 {[%clk 0:01:52]}  c5 {[%clk 0:02:57]} 16. d5 {[%clk 0:01:47]}  Nd7 {[%clk 0:02:56]} 17. Nf1 {[%clk 0:01:43]}  c4 {[%clk 0:02:43]} 18. Bd2 {[%clk 0:01:30]}  Nd3 {[%clk 0:02:39]} 19. Bxd3 {[%clk 0:01:28]}  cxd3 {[%clk 0:02:40]} 20. Ra3 {[%clk 0:01:16]}  Nc5 {[%clk 0:02:34]} 21. Ng3 {[%clk 0:01:12]}  bxa4 {[%clk 0:02:31]} 22. Bb4 {[%clk 0:01:07]}  Rc8 {[%clk 0:02:09]} 23. Bxc5 {[%clk 0:01:06]}  Rxc5 {[%clk 0:02:09]} 24. Qxd3 {[%clk 0:01:03]}  Qa5 {[%clk 0:02:06]} 25. b4 {[%clk 0:00:58]}  Qxb4 {[%clk 0:01:38]} 26. Rb1 {[%clk 0:00:55]}  Qc4 {[%clk 0:01:27]} 27. Rxb7 {[%clk 0:00:51]}  Qxd3 {[%clk 0:01:13]} 28. Rxd3 {[%clk 0:00:50]}  Rb5 {[%clk 0:01:13]} 29. Ra7 {[%clk 0:00:40]}  a5 {[%clk 0:01:10]} 30. Ra3 {[%clk 0:00:40]}  g6 {[%clk 0:01:07]} 31. Rxa4 {[%clk 0:00:39]}  Bg7 {[%clk 0:01:05]} 32. R4xa5 {[%clk 0:00:39]}  Rb1+ {[%clk 0:01:04]} 33. Kh2 {[%clk 0:00:39]}  h5 {[%clk 0:01:01]} 34. h4 {[%clk 0:00:39]}  Rb2 {[%clk 0:00:59]} 35. R5a6 {[%clk 0:00:31]}  Rxf2 {[%clk 0:00:57]} 36. Rxd6 {[%clk 0:00:31]}  Rb8 {[%clk 0:00:53]} 37. Rdd7 {[%clk 0:00:23]}  Rbb2 {[%clk 0:00:49]} 38. Rxf7 {[%clk 0:00:23]}  Rxg2+ {[%clk 0:00:43]} 39. Kh3 {[%clk 0:00:23]}  Bf8 {[%clk 0:00:33]} 40. Rfb7 {[%clk 0:00:22]}  Rxb7 {[%clk 0:00:21]} 41. Rxb7 {[%clk 0:00:21]}  Rf2 {[%clk 0:00:22]} 42. Ng5 {[%clk 0:00:19]}  Bd6 {[%clk 0:00:20]} 43. Ne6 {[%clk 0:00:19]}  Rf3 {[%clk 0:00:18]} 44. Kg2 {[%clk 0:00:19]}  Rxg3+ {[%clk 0:00:18]} 45. Kf2 {[%clk 0:00:20]}  Rg4 {[%clk 0:00:13]} 46. Kf3 {[%clk 0:00:18]}  Rxh4 {[%clk 0:00:12]} 47. Rg7+ {[%clk 0:00:18]}  Kh8 {[%clk 0:00:12]} 48. Rxg6 {[%clk 0:00:18]}  Rh3+ {[%clk 0:00:12]} 49. Kf2 {[%clk 0:00:16]}  Rh2+ {[%clk 0:00:11]} 50. Ke3 {[%clk 0:00:15]}  Rh3+ {[%clk 0:00:11]} 51. Ke2 {[%clk 0:00:14]}  Rh2+ {[%clk 0:00:11]} 52. Kd3 {[%clk 0:00:15]}  Rh3+ {[%clk 0:00:11]} 53. Kc4 {[%clk 0:00:15]}  Re3 {[%clk 0:00:10]} 54. Ng5 {[%clk 0:00:14]}  Be7 {[%clk 0:00:09]} 55. Nf7+ {[%clk 0:00:13]}  Kh7 {[%clk 0:00:09]} 56. Re6 {[%clk 0:00:14]}  Bf8 {[%clk 0:00:07]} 57. e5 {[%clk 0:00:11]}  h4 {[%clk 0:00:07]} 58. d6 {[%clk 0:00:10]}  h3 {[%clk 0:00:05]} 59. Ng5+ {[%clk 0:00:10]}  Kg7 {[%clk 0:00:04]} 60. Nxh3 {[%clk 0:00:09]}  Rxh3 {[%clk 0:00:04]} 61. d7 {[%clk 0:00:10]}  Rh4+ {[%clk 0:00:05]} 62. Kd5 {[%clk 0:00:09]}  Rh1 {[%clk 0:00:05]} 63. Kc6 {[%clk 0:00:07]}  Rd1 {[%clk 0:00:05]} 64. Rd6 {[%clk 0:00:06]}  Bxd6 {[%clk 0:00:04]} 65. exd6 {[%clk 0:00:06]}  Rc1+ {[%clk 0:00:04]} 66. Kb7 {[%clk 0:00:05]}  Rb1+ {[%clk 0:00:04]} 67. Kc8 {[%clk 0:00:05]}  Rc1+ {[%clk 0:00:04]} 68. Kb8 {[%clk 0:00:05]}  Rb1+ {[%clk 0:00:04]} 69. Ka7 {[%clk 0:00:05]}  Ra1+ {[%clk 0:00:04]} 70. Kb6 {[%clk 0:00:05]}  Rb1+ {[%clk 0:00:04]} 71. Kc5 {[%clk 0:00:04]}  Rc1+ {[%clk 0:00:05]} 72. Kd5 {[%clk 0:00:04]}  Rd1+ {[%clk 0:00:05]} 73. Kc6 {[%clk 0:00:04]}  Rc1+ {[%clk 0:00:05]} 74. Kb7 {[%clk 0:00:04]}  Rb1+ {[%clk 0:00:06]} 75. Kc8 {[%clk 0:00:05]}  Rc1+ {[%clk 0:00:06]} 76. Kd8 {[%clk 0:00:05]}  Kf7 {[%clk 0:00:05]} 1/2-1/2


[Site "https://www.chess.com"]

[Event "Titled Tuesday Blitz August 1 Early 2023"]
[White "Erzhanov, Arman"]
[Black "Quirke, Jeffrey"]
[WhiteFideId "4138821"]
[BlackFideId "2013029"]
[WhiteElo "2506"]
[BlackElo "2254"]
[Result "1-0"]
[Round "5"]
[TimeControl "180+1"]
[Date "2023.08.01"]
[WhiteClock "0:00:14"]
[BlackClock "0:00:00"]
[Board "152"]

1. e4 {[%clk 0:03:00]}  e6 {[%clk 0:02:59]} 2. b3 {[%clk 0:02:59]}  c5 {[%clk 0:02:57]} 3. Nf3 {[%clk 0:02:58]}  Nc6 {[%clk 0:02:55]} 4. Bb5 {[%clk 0:02:58]}  Nge7 {[%clk 0:02:50]} 5. Bb2 {[%clk 0:02:59]}  a6 {[%clk 0:02:50]} 6. Bxc6 {[%clk 0:02:59]}  Nxc6 {[%clk 0:02:51]} 7. O-O {[%clk 0:02:59]}  Rg8 {[%clk 0:02:35]} 8. d4 {[%clk 0:02:49]}  cxd4 {[%clk 0:02:35]} 9. Nxd4 {[%clk 0:02:49]}  d6 {[%clk 0:02:27]} 10. c4 {[%clk 0:02:49]}  Be7 {[%clk 0:02:25]} 11. Qh5 {[%clk 0:02:42]}  h6 {[%clk 0:02:16]} 12. Nf3 {[%clk 0:02:42]}  Bf6 {[%clk 0:02:08]} 13. Nc3 {[%clk 0:02:40]}  Qe7 {[%clk 0:01:54]} 14. Rad1 {[%clk 0:02:39]}  Bd7 {[%clk 0:01:54]} 15. Rd2 {[%clk 0:02:17]}  O-O-O {[%clk 0:01:54]} 16. Rfd1 {[%clk 0:02:17]}  Be8 {[%clk 0:01:54]} 17. Na4 {[%clk 0:02:14]}  Bxb2 {[%clk 0:01:49]} 18. Rxb2 {[%clk 0:02:15]}  f5 {[%clk 0:01:20]} 19. Qh3 {[%clk 0:02:02]}  fxe4 {[%clk 0:01:20]} 20. Nd4 {[%clk 0:01:59]}  Nxd4 {[%clk 0:01:08]} 21. Rxd4 {[%clk 0:01:59]}  Bxa4 {[%clk 0:01:08]} 22. bxa4 {[%clk 0:01:57]}  Kb8 {[%clk 0:00:59]} 23. Rxe4 {[%clk 0:01:57]}  Rge8 {[%clk 0:01:00]} 24. Rbe2 {[%clk 0:01:55]}  e5 {[%clk 0:00:57]} 25. Qb3 {[%clk 0:01:47]}  Qc7 {[%clk 0:00:51]} 26. h3 {[%clk 0:01:44]}  Rf8 {[%clk 0:00:49]} 27. Rd2 {[%clk 0:01:29]}  Rf4 {[%clk 0:00:36]} 28. Rxf4 {[%clk 0:01:15]}  exf4 {[%clk 0:00:37]} 29. Rd4 {[%clk 0:01:14]}  g5 {[%clk 0:00:37]} 30. Rd5 {[%clk 0:01:08]}  Re8 {[%clk 0:00:36]} 31. Kh2 {[%clk 0:01:05]}  Re5 {[%clk 0:00:31]} 32. Rd2 {[%clk 0:00:45]}  Rc5 {[%clk 0:00:28]} 33. Rd4 {[%clk 0:00:44]}  Ka7 {[%clk 0:00:19]} 34. Qd3 {[%clk 0:00:42]}  Qa5 {[%clk 0:00:13]} 35. Rxd6 {[%clk 0:00:41]}  Qxa4 {[%clk 0:00:12]} 36. Rxh6 {[%clk 0:00:35]}  Qxc4 {[%clk 0:00:12]} 37. Qd8 {[%clk 0:00:21]}  Qd5 {[%clk 0:00:08]} 38. Qf6 {[%clk 0:00:18]}  Rc2 {[%clk 0:00:06]} 39. Qb6+ {[%clk 0:00:18]}  Kb8 {[%clk 0:00:06]} 40. Rh8+ {[%clk 0:00:18]}  Rc8 {[%clk 0:00:06]} 41. Rh7 {[%clk 0:00:17]}  Qc6 {[%clk 0:00:04]} 42. Qd4 {[%clk 0:00:16]}  f3 {[%clk 0:00:03]} 43. Qe5+ {[%clk 0:00:12]}  Ka8 {[%clk 0:00:02]} 44. Qg3 {[%clk 0:00:11]}  fxg2 {[%clk 0:00:02]} 45. Qxg2 {[%clk 0:00:12]}  Qxg2+ {[%clk 0:00:02]} 46. Kxg2 {[%clk 0:00:12]}  Rc2 {[%clk 0:00:02]} 47. Rg7 {[%clk 0:00:13]}  Rxa2 {[%clk 0:00:03]} 48. Rxg5 {[%clk 0:00:13]}  a5 {[%clk 0:00:04]} 49. h4 {[%clk 0:00:14]}  a4 {[%clk 0:00:04]} 50. h5 {[%clk 0:00:13]}  a3 {[%clk 0:00:00]} 51. h6 {[%clk 0:00:14]} 1-0


[Site "https://www.chess.com"]

[Event "Titled Tuesday Blitz August 1 Early 2023"]
[White "Liu, Casper"]
[Black "De Souza, Cristiano Gomes"]
[WhiteFideId "1454153"]
[BlackFideId "2151758"]
[WhiteElo "2502"]
[BlackElo "2218"]
[Result "1-0"]
[Round "5"]
[TimeControl "180+1"]
[Date "2023.08.01"]
[WhiteClock "0:02:42"]
[BlackClock "0:01:41"]
[Board "153"]

1. e4 {[%clk 0:02:38]}  c5 {[%clk 0:02:58]} 2. d4 {[%clk 0:02:39]}  cxd4 {[%clk 0:02:57]} 3. Qxd4 {[%clk 0:02:39]}  Nc6 {[%clk 0:02:56]} 4. Qe3 {[%clk 0:02:40]}  g6 {[%clk 0:02:56]} 5. Nc3 {[%clk 0:02:41]}  Bg7 {[%clk 0:02:56]} 6. Bd2 {[%clk 0:02:41]}  a6 {[%clk 0:02:56]} 7. O-O-O {[%clk 0:02:41]}  e6 {[%clk 0:02:55]} 8. h4 {[%clk 0:02:42]}  Nge7 {[%clk 0:02:54]} 9. h5 {[%clk 0:02:42]}  d5 {[%clk 0:02:49]} 10. exd5 {[%clk 0:02:42]}  Nxd5 {[%clk 0:02:48]} 11. Nxd5 {[%clk 0:02:42]}  Qxd5 {[%clk 0:02:45]} 12. Bc3 {[%clk 0:02:42]}  Qxa2 {[%clk 0:02:02]} 13. Bxg7 {[%clk 0:02:42]}  Rg8 {[%clk 0:01:41]} 14. Bf6 {[%clk 0:02:42]} 1-0


[Site "https://www.chess.com"]